Workbook

Sheet Tabelle1
A1: Zéro de f(x)=0.9*x^3-2*x^2-3*x+4 entre 2.5 et 3 | I1: (exercice 15, chapitre 7)
A3: Newton | F3: Regula Falsi
A4: a | B4: f(a) | C4: f'(a) | D4: nombre de tours | F4: inf | G4: sup | H4: moyenne | I4: f(moyenne) | J4: f(inf)*f(moyenne) | K4: nombre de tours
A5: 2.5 | B5: =0.9*A5^3-2*A5^2-3*A5+4 -> -1.9375 | C5: =2.7*A5^2-4*A5-3 -> 3.875 | F5: 2.5 | G5: 3 | H5: =AVERAGE(F5:G5) -> 2.75 | I5: =0.9*H5^3-2*H5^2-3*H5+4 -> -0.6578125 | J5: =(0.9*F5^3-2*F5^2-3*F5+4)*I5 -> 1.274511719
A6: =A5-B5/C5 -> 3 | B6: =0.9*A6^3-2*A6^2-3*A6+4 -> 1.3 | C6: =2.7*A6^2-4*A6-3 -> 9.3 | D6: 1 | F6: =IF(J5<=0,F5,H5) -> 2.75 | G6: =IF(J5<=0,H5,G5) -> 3 | H6: =AVERAGE(F6:G6) -> 2.875 | I6: =0.9*H6^3-2*H6^2-3*H6+4 -> 0.2310546875 | J6: =(0.9*F6^3-2*F6^2-3*F6+4)*I6 -> -0.1519906616 | K6: 1
A7: =A6-B6/C6 -> 2.860215054 | B7: =0.9*A7^3-2*A7^2-3*A7+4 -> 0.1167347335 | C7: =2.7*A7^2-4*A7-3 -> 7.6473812 | D7: 2 | F7: =IF(J6<=0,F6,H6) -> 2.75 | G7: =IF(J6<=0,H6,G6) -> 2.875 | H7: =AVERAGE(F7:G7) -> 2.8125 | I7: =0.9*H7^3-2*H7^2-3*H7+4 -> -0.2352294922 | J7: =(0.9*F7^3-2*F7^2-3*F7+4)*I7 -> 0.1547369003 | K7: 2
A8: 2.844950386 | B8: 0.00133021785 | C8: 7.473303743 | D8: 3 | F8: 2.8125 | G8: 2.875 | H8: 2.84375 | I8: -0.007632446289 | J8: 0.001795376465 | K8: 3
A9: 2.84477239 | B9: 1.799951548e-07 | C9: 7.471281308 | D9: 4 | F9: 2.84375 | G9: 2.875 | H9: 2.859375 | I9: 0.1103145599 | J9: -0.0008419699536 | K9: 4
A10: 2.844772366 | B10: 0 | C10: 7.471281034 | D10: 5 | F10: 2.84375 | G10: 2.859375 | H10: 2.8515625 | I10: 0.05099320412 | J10: -0.0003892028915 | K10: 5
F11: 2.84375 | G11: 2.8515625 | H11: 2.84765625 | I11: 0.02159357667 | J11: -0.0001648118141 | K11: 6
F12: 2.84375 | G12: 2.84765625 | H12: 2.845703125 | I12: 0.006958884746 | J12: -5.311331405e-05 | K12: 7
F13: 2.84375 | G13: 2.845703125 | H13: 2.844726562 | I13: -0.0003421983682 | J13: 2.611810665e-06 | K13: 8
F14: 2.844726562 | G14: 2.845703125 | H14: 2.845214844 | I14: 0.003306988475 | J14: -1.13164606e-06 | K14: 9
F15: 2.844726562 | G15: 2.845214844 | H15: 2.844970703 | I15: 0.001482056415 | J15: -5.071572866e-07 | K15: 10
F16: 2.844726562 | G16: 2.844970703 | H16: 2.844848633 | I16: 0.0005698443683 | J16: -1.949998129e-07 | K16: 11
F17: 2.844726562 | G17: 2.844848633 | H17: 2.844787598 | I17: 0.000113801837 | J17: -3.894280291e-08 | K17: 12
F18: 2.844726562 | G18: 2.844787598 | H18: 2.84475708 | I18: -0.0001142035563 | J18: 3.90802706e-08 | K18: 13
F19: 2.84475708 | G19: 2.844787598 | H19: 2.844772339 | I19: -2.021823349e-07 | J19: 2.308994166e-11 | K19: 14
F20: 2.844772339 | G20: 2.844787598 | H20: 2.844779968 | I20: 5.679949665e-05 | J20: -1.148385485e-11 | K20: 15
F21: 2.844772339 | G21: 2.844779968 | H21: 2.844776154 | I21: 2.829857449e-05 | J21: -5.721471864e-12 | K21: 16
F22: 2.844772339 | G22: 2.844776154 | H22: 2.844774246 | I22: 1.404817541e-05 | J22: -2.840292906e-12 | K22: 17
F23: 2.844772339 | G23: 2.844774246 | H23: 2.844773293 | I23: 6.922991368e-06 | J23: -1.399706559e-12 | K23: 18
F24: 2.844772339 | G24: 2.844773293 | H24: 2.844772816 | I24: 3.360403227e-06 | J24: -6.794141705e-13 | K24: 19
F25: 2.844772339 | G25: 2.844772816 | H25: 2.844772577 | I25: 1.579110123e-06 | J25: -3.192681716e-13 | K25: 20
F26: =IF(J25<=0,F25,H25) -> 2.844772339 | G26: =IF(J25<=0,H25,G25) -> 2.844772577 | H26: =AVERAGE(F26:G26) -> 2.844772458 | I26: =0.9*H26^3-2*H26^2-3*H26+4 -> 6.884638104e-07 | J26: =(0.9*F26^3-2*F26^2-3*F26+4)*I26 -> -1.391952207e-13 | K26: 21
F27: =IF(J26<=0,F26,H26) -> 2.844772339 | G27: =IF(J26<=0,H26,G26) -> 2.844772458 | H27: =AVERAGE(F27:G27) -> 2.844772398 | I27: 2.431407182e-07 | J27: =(0.9*F27^3-2*F27^2-3*F27+4)*I27 -> -4.915875811e-14 | K27: 22
F28: 2.844772339 | G28: 2.844772398 | H28: 2.844772369 | I28: 2.047918457e-08 | J28: -4.140529353e-15 | K28: 23
F29: 2.844772339 | G29: 2.844772369 | H29: 2.844772354 | I29: -9.085157515e-08 | J29: 1.836858359e-14 | K29: 24
F30: 2.844772354 | G30: 2.844772369 | H30: 2.844772361 | I30: -3.518619351e-08 | J30: 3.196721104e-15 | K30: 25
F31: 2.844772361 | G31: 2.844772369 | H31: 2.844772365 | I31: -7.353506248e-09 | J31: 2.587418939e-16 | K31: 26
F32: 2.844772365 | G32: 2.844772369 | H32: 2.844772367 | I32: 6.562839161e-09 | J32: -4.825987878e-17 | K32: 27
F33: 2.844772365 | G33: 2.844772367 | H33: 2.844772366 | I33: -3.953317673e-10 | J33: 2.907074621e-18 | K33: 28
F34: 2.844772366 | G34: 2.844772367 | H34: 2.844772366 | I34: 3.083755473e-09 | J34: -1.219106501e-18 | K34: 29
F35: 2.844772366 | G35: 2.844772366 | H35: 2.844772366 | I35: 1.3442083e-09 | J35: -5.31408243e-19 | K35: 30
F36: 2.844772366 | G36: 2.844772366 | H36: 2.844772366 | I36: 4.744364901e-10 | J36: -1.875598161e-19 | K36: 31
F37: 2.844772366 | G37: 2.844772366 | H37: 2.844772366 | I37: 3.95559141e-11 | J37: -1.563770943e-20 | K37: 32
F38: 2.844772366 | G38: 2.844772366 | H38: 2.844772366 | I38: -1.778914793e-10 | J38: 7.032615291e-20 | K38: 33
F39: 2.844772366 | G39: 2.844772366 | H39: 2.844772366 | I39: -6.916778261e-11 | J39: 1.230435917e-20 | K39: 34
F40: 2.844772366 | G40: 2.844772366 | H40: 2.844772366 | I40: -1.480771061e-11 | J40: 1.024216509e-21 | K40: 35
F41: 2.844772366 | G41: 2.844772366 | H41: 2.844772366 | I41: 1.237410174e-11 | J41: -1.832321177e-22 | K41: 36
F42: =IF(J41<=0,F41,H41) -> 2.844772366 | G42: =IF(J41<=0,H41,G41) -> 2.844772366 | H42: =AVERAGE(F42:G42) -> 2.844772366 | I42: =0.9*H42^3-2*H42^2-3*H42+4 -> -1.215028078e-12 | J42: =(0.9*F42^3-2*F42^2-3*F42+4)*I42 -> 1.799178417e-23 | K42: 37
F43: =IF(J42<=0,F42,H42) -> 2.844772366 | G43: =IF(J42<=0,H42,G42) -> 2.844772366 | H43: =AVERAGE(F43:G43) -> 2.844772366 | I43: 5.577760476e-12 | J43: =(0.9*F43^3-2*F43^2-3*F43+4)*I43 -> -6.777135591e-24 | K43: 38
F44: 2.844772366 | G44: 2.844772366 | H44: 2.844772366 | I44: 2.181366199e-12 | J44: -2.65042118e-24 | K44: 39
F45: 2.844772366 | G45: 2.844772366 | H45: 2.844772366 | I45: 4.796163466e-13 | J45: -5.827473279e-25 | K45: 40
F46: 2.844772366 | G46: 2.844772366 | H46: 2.844772366 | I46: -3.694822226e-13 | J46: 4.489312748e-25 | K46: 41
F47: 2.844772366 | G47: 2.844772366 | H47: 2.844772366 | I47: 5.684341886e-14 | J47: -2.100263274e-26 | K47: 42
F48: 2.844772366 | G48: 2.844772366 | H48: 2.844772366 | I48: -1.527666882e-13 | J48: 5.644457549e-26 | K48: 43
F49: 2.844772366 | G49: 2.844772366 | H49: 2.844772366 | I49: -4.97379915e-14 | J49: 7.598308239e-27 | K49: 44
F50: 2.844772366 | G50: 2.844772366 | H50: 2.844772366 | I50: 3.552713679e-15 | J50: -1.767048428e-28 | K50: 45
F51: 2.844772366 | G51: 2.844772366 | H51: 2.844772366 | I51: -2.486899575e-14 | J51: 1.236933899e-27 | K51: 46
F52: 2.844772366 | G52: 2.844772366 | H52: 2.844772366 | I52: -8.881784197e-15 | J52: 2.208810535e-28 | K52: 47
F53: 2.844772366 | G53: 2.844772366 | H53: 2.844772366 | I53: 0 | J53: 0 | K53: 48
